fUSD/lending_fUSD_20241022
["ID","MTS","AMOUNT","RATE_DAILY","PERIOD"]
[340641012,1729583431570,-178.2,0.00010959,2]
[340641013,1729583431580,-165.6,0.00010959,2]
[340641014,1729583431590,-250.0,0.00010959,2]
[340641015,1729583431599,-249.7048047,0.0001099,2]
[340641016,1729583431608,-249.7048047,0.0001099,2]
[340641017,1729583431618,-27.3437406,0.0001099,2]
[340641018,1729583431725,-222.3610641,0.0001099,2]
[340641019,1729583431735,-417.72893598,0.00010999,2]
[340641044,1729583439392,-1359.888,0.00010999,2]
[340641045,1729583439707,-1176.30608517,0.00010999,2]
[340641049,1729583445544,-4548.04459857,0.00010999,2]
[340641050,1729583445555,-168.59162465,0.00010999,2]
[340641051,1729583445565,-500.0,0.00010999,2]
[340641052,1729583445575,-500.0,0.00010999,2]
[340641053,1729583445585,-500.0,0.00010999,2]
[340641054,1729583445596,-500.0,0.00010999,2]
[340641055,1729583445607,-500.0,0.00010999,2]
[340641056,1729583445617,-500.0,0.00010999,2]
[340641057,1729583445627,-336.58618445,0.00010999,2]
[340641058,1729583445636,-194.69461473,0.00011,2]
[340641059,1729583445646,-578.71552365,0.00011,2]
[340641062,1729583506918,250.0,0.00010344,2]
[340641063,1729583510298,150.0,0.00010344,2]
[340641064,1729583510324,50.0,0.00010344,2]
[340641065,1729583614876,196.5,0.00010336,2]
[340641066,1729583618561,150.0,8.418e-05,2]
[340641067,1729583618582,150.0,8.418e-05,2]
[340641068,1729583618603,42.43,8.418e-05,2]
[340641069,1729583642835,107.57,0.00010336,2]
[340641070,1729583642858,66.49,0.00010336,2]
[340641071,1729583679912,150.0,0.00010326,2]
[340641072,1729583679932,100.0,0.00010326,2]
[340641073,1729583682382,50.0,0.0001,2]
[340641074,1729583682402,150.0,0.0001,2]
[340641075,1729583682422,50.0,0.0001,2]
[340641076,1729583896787,-342.43,0.00010682,2]
[340641077,1729583896809,-300.0,0.00010899,2]
[340641078,1729583896831,-7500.0,0.000109,2]
[340641079,1729583896852,-3883.7576,0.000109,2]
[340641080,1729583896872,-5496.7197,0.000109,2]
[340641081,1729583896893,-2477.0927,0.000109,2]
[340641082,1729583957364,100.0,0.0001032,2]
[340641083,1729583957384,60.6,0.0001032,2]
[340641084,1729583964950,89.4,0.00010311,2]
[340641085,1729583964970,89.52,0.00010311,2]
[340641086,1729584045727,150.0,0.00010357,2]
[340641087,1729584045752,690.0,0.00010357,2]
[340641088,1729584062425,191.5,0.00013141,30]
[340641089,1729584079133,250.0,0.00010373,2]
[340641090,1729584126149,150.0,0.00010373,2]
[340641091,1729584126169,150.0,0.00010373,2]
[340641092,1729584126189,150.0,0.00010373,2]
[340641093,1729584126209,150.0,0.00010373,2]
[340641094,1729584126229,150.0,0.00010373,2]
[340641095,1729584126249,150.0,0.00010373,2]
[340641096,1729584126269,150.0,0.00010373,2]
[340641097,1729584126289,150.0,0.00010373,2]
[340641098,1729584126309,150.0,0.00010373,2]
[340641099,1729584126328,150.0,0.00010373,2]
[340641100,1729584126350,150.0,0.00010373,2]
[340641101,1729584126369,150.0,0.00010373,2]
[340641102,1729584126389,253.27450758,0.00010373,2]
[340641103,1729584126411,12471.15549242,0.00010373,2]
[340641104,1729584167706,450.0,0.0001,2]
[340641105,1729584237932,250.0,0.00010336,2]
[340641106,1729584239521,326.96,8.419e-05,2]
[340641149,1729584509249,150.0,0.00010285,2]
[340641188,1729584540806,328.0,0.00010285,2]
[340641201,1729584603176,150.0,0.00010285,2]
[340641202,1729584603374,150.0,0.00010285,2]
[340641203,1729584603554,159.4923877,0.00010285,2]
[340641213,1729584631529,-150.0,0.00010673,2]
[340641215,1729584631541,-122.29815468,0.00010682,2]
[340641217,1729584631583,-204.66184532,0.00010682,2]
[340641218,1729584631592,-107.35915062,0.000109,2]
[340641219,1729584631688,-567.14,0.000109,2]
[340641220,1729584631743,-964.46147219,0.000109,2]
[340641241,1729584637876,-457.4013584,0.000109,2]
[340641242,1729584637886,-3568.63471429,0.000109,2]
[340641243,1729584637898,-1000.0,0.000109,2]
[340641244,1729584637909,-1087.37403779,0.000109,2]
[340641245,1729584637920,-2693.70253642,0.000109,2]
[340641246,1729584637932,-4539.64542063,0.000109,2]
[340641247,1729584637967,-2424.99999999,0.000109,2]
[340641248,1729584637978,-12241.87061508,0.000109,2]
[340641426,1729584639879,-6738.9,0.000109,2]
[340641615,1729584642641,-425.73999993,0.000109,2]
[340641616,1729584642749,-12401.58367587,0.000109,2]
[340641617,1729584642759,-1424.6073,0.000109,2]
[340641621,1729584642884,-500.0,0.000109,2]
[340641623,1729584642896,-1000.0,0.000109,2]
[340641624,1729584642907,-9327.0075,0.000109,2]
[340641625,1729584642916,-356.48410785,0.000109,2]
[340641626,1729584642926,-407.8282,0.000109,2]
[340641627,1729584642936,-3523.3564,0.000109,2]
[340641628,1729584642945,-7500.0,0.000109,2]
[340641629,1729584642955,-3771.59896936,0.000109,2]
[340641630,1729584642965,-169.2339584,0.000109,2]
[340641631,1729584642975,-407.1483665,0.000109,2]
[340641632,1729584642984,-184.10871904,0.000109,2]
[340641633,1729584642993,-150.81,0.00010959,2]
[340641634,1729584643003,-178.2,0.00010959,2]
[340641635,1729584643012,-706.84,0.00010959,2]
[340641636,1729584643021,-343.39898002,0.0001099,2]
[340641637,1729584643030,-343.39898002,0.0001099,2]
[340641638,1729584643040,-343.39898002,0.0001099,2]
[340641639,1729584643053,-444.09108838,0.00010999,2]
[340641640,1729584643071,-500.0,0.00010999,2]
[340641641,1729584643110,-500.0,0.00010999,2]
[340641642,1729584643162,-639.59476021,0.00010999,2]
[340641643,1729584643216,-500.0,0.00010999,2]
[340641644,1729584643324,-500.0,0.00010999,2]
[340641645,1729584643407,-500.0,0.00010999,2]
[340641646,1729584643493,-500.0,0.00010999,2]
[340641647,1729584643564,-500.0,0.00010999,2]
[340641648,1729584643650,-174.04239409,0.00010999,2]
[340641649,1729584643738,-256.98785462,0.00010999,2]
[340641650,1729584643824,-520.0,0.00011,2]
[340641651,1729584643914,-1970149.05752207,0.00011,2]
[340641652,1729584643931,-245062.5561831,0.00011,2]
[340641658,1729584645533,-706851.783669,0.00011,2]
[340641659,1729584645545,-987.86705186,0.00011,2]
[340641661,1729584648109,150.0,0.000125,3]
[340641662,1729584662096,150.0,0.00010367,2]
[340641663,1729584662118,900.0,0.00010367,2]
[340641664,1729584681334,250.0,0.00010363,2]
[340641665,1729584685163,195.73,0.00010363,2]
[340641666,1729584740918,484.37,8.391e-05,2]
[340641667,1729584755174,-484.37,0.00010655,2]
[340641668,1729584755213,-150.0,0.00010666,2]
[340641669,1729584755252,-641.30445,0.000109,2]
[340641670,1729584755291,-37220.0163,0.000109,2]
[340641671,1729584755330,-499.0421,0.000109,2]
[340641672,1729584755369,-250.0,0.00010959,2]
[340641673,1729584755410,-150.71,0.00010959,2]
[340641674,1729584755449,-6111.34829889,0.00010999,2]
[340641675,1729584755488,-150.0,0.00010999,2]
[340641676,1729584755530,-509367.89129841,0.00011,2]
[340641677,1729584755569,-423914.25735587,0.00011,2]
[340641678,1729584755611,-6021061.06019683,0.00011,2]
[340641679,1729584755666,250.0,0.00010297,2]
[340641681,1729584877283,-150.0,0.00010666,2]
[340641682,1729584877306,-6991.2131,0.000109,2]
[340641683,1729584877331,-319.60075278,0.000109,2]
[340641684,1729584877354,-2500.0,0.000109,2]
[340641685,1729584877377,-564.19924773,0.00010999,2]
[340641686,1729584877404,-500.0,0.00010999,2]
[340641687,1729584877430,-500.0,0.00010999,2]
[340641688,1729584877453,-404.3994178,0.00010999,2]
[340641689,1729584877479,-409.16784488,0.00010999,2]
[340641690,1729584877509,-500.0,0.00010999,2]
[340641691,1729584877541,-356161.41963681,0.00011,2]
[340641693,1729584909265,156.21,0.00010361,2]
[340641694,1729584927483,-1022.96984449,0.0001078,2]
[340641695,1729584927506,-1117.35679593,0.0001078,2]
[340641696,1729584927529,-9887.51561194,0.000109,2]
[340641697,1729584927553,-194.82046045,0.00011,2]
[340641698,1729584927592,-299777.33728719,0.00011,2]
[340641700,1729585096997,737.6,0.00010364,2]
[340641701,1729585202881,150.0,0.00010364,2]
[340641702,1729585300200,435.93,8.411e-05,2]
[340641703,1729585320382,250.0,0.00010294,2]
[340641704,1729585388381,250.0,0.00010311,2]
[340641705,1729585504097,250.0,0.0001,2]
[340641706,1729585514094,-435.93,0.00010675,2]
[340641707,1729585514140,-300.0,0.00010779,2]
[340641708,1729585514191,-1111.03398822,0.0001078,2]
[340641709,1729585514354,-1083.36362546,0.0001078,2]
[340641710,1729585514397,-1210.272,0.0001078,2]
[340641711,1729585514440,-507.01280343,0.000109,2]
[340641712,1729585514484,-159.95258416,0.000109,2]
[340641713,1729585514527,-1486.68371154,0.000109,2]
[340641714,1729585514573,-100000.0,0.000109,2]
[340641715,1729585514617,-555.8781,0.000109,2]
[340641716,1729585514660,-290.31,0.00010959,2]
[340641717,1729585514705,-157.81,0.00010959,2]
[340641718,1729585514750,-700.02,0.00010959,2]
[340641719,1729585514795,-401.65645512,0.00010973,2]
[340641720,1729585514839,-177.20452617,0.0001099,2]
[340641721,1729585514963,-177.20452617,0.0001099,2]
[340641722,1729585515009,-177.20452617,0.0001099,2]
[340641723,1729585515056,-43346.2749242,0.00010997,2]
[340641724,1729585515102,-28198.9616564,0.00010997,2]
[340641725,1729585515147,-500.0,0.00010999,2]
[340641726,1729585515194,-500.0,0.00010999,2]
[340641727,1729585515238,-500.0,0.00010999,2]
[340641728,1729585515284,-500.0,0.00010999,2]
[340641729,1729585515332,-500.0,0.00010999,2]
[340641730,1729585515377,-500.0,0.00010999,2]
[340641731,1729585515425,-500.0,0.00010999,2]
[340641732,1729585515472,-500.0,0.00010999,2]
[340641733,1729585515519,-500.0,0.00010999,2]
[340641734,1729585515565,-500.0,0.00010999,2]
[340641735,1729585515611,-500.0,0.00010999,2]
[340641736,1729585515656,-500.0,0.00010999,2]
[340641737,1729585515700,-500.0,0.00010999,2]
[340641738,1729585515748,-500.0,0.00010999,2]
[340641739,1729585515794,-500.0,0.00010999,2]
[340641740,1729585515932,-500.0,0.00010999,2]
[340641741,1729585515987,-485.78340659,0.00010999,2]
[340641742,1729585516030,-519.0,0.00011,2]
[340641743,1729585516081,-1810518.44316637,0.00011,2]
[340641744,1729585520197,715.00717414,9e-05,2]
[340641745,1729585530298,1065.88865864,0.000101,2]
[340641746,1729585537359,2250.0,9e-05,2]
[340641747,1729585556419,1200.0,6.94e-05,2]
[340641748,1729585563607,161.44145798,9e-05,2]
[340641751,1729585607307,155.73,0.00010298,2]
[340641752,1729585640200,150.0,9.8e-05,2]
[340641753,1729585640222,55.0,9.8e-05,2]
[340641762,1729585657772,95.0,0.00010298,2]
[340641763,1729585657792,231.15680738,0.00010298,2]
[340641764,1729585657814,83.76319262,0.00010298,2]
[340641766,1729585697305,150.0,0.00010297,2]
[340641767,1729585697331,8.08,0.00010297,2]
[340641768,1729585697533,158.08,0.00010302,2]
[340641769,1729585697759,158.08,0.00010307,2]
[340641770,1729585697975,158.08,0.00010311,2]
[340641771,1729585698205,158.08,0.00010316,2]
[340641772,1729585698404,158.08,0.00010321,2]
[340641773,1729585698617,158.08,0.00010325,2]
[340641774,1729585699157,158.08,0.0001033,2]
[340641775,1729585699380,158.08,0.00010335,2]
[340641777,1729585699641,158.08,0.00010339,2]
[340641778,1729585699848,158.08,0.00010344,2]
[340641779,1729585700044,158.08,0.00010349,2]
[340641780,1729585709782,1562.56,0.00010297,2]
[340641782,1729585718270,212.30910014,0.0001,2]
[340641789,1729585731657,2611.56,0.00010286,2]
[340641794,1729585802844,152.85,0.00010276,2]
[340641795,1729585804457,23900.0,0.00010276,2]
[340641805,1729585831728,-254.59739936,0.000107,2]
[340641807,1729585831739,-2438.0,0.00010781,2]
[340641808,1729585831748,-1041.499671,0.00010897,2]
[340641809,1729585831759,-573.88723251,0.00010897,2]
[340641810,1729585831790,-1974.8225,0.00010897,2]
[340641814,1729585832140,-465.78806071,0.00010897,2]
[340641815,1729585832152,-261.39657885,0.00010897,2]
[340641816,1729585832163,-544.99188264,0.00010897,2]
[340641817,1729585832175,-1564.78807429,0.00010897,2]
[340641818,1729585832184,-265.26233551,0.000109,2]
[340641819,1729585832200,-734.73766449,0.000109,2]
[340641820,1729585832209,-2934.4413,0.000109,2]
[340641821,1729585832218,-1376.6378999,0.000109,2]
[340641822,1729585832230,-2613.10872722,0.000109,2]
[340641823,1729585832245,-669.94125223,0.000109,2]
[340641825,1729585837903,-4768.0474889,0.000109,2]
[340641826,1729585837961,-6671.76743209,0.000109,2]
[340641827,1729585838290,-1077.19333998,0.000109,2]
[340641828,1729585838304,-2503.52729507,0.000109,2]
[340641831,1729585839920,-3205.04646461,0.000109,2]
[340641832,1729585839930,-3505.75353539,0.000109,2]
[340641833,1729585840087,-1543.97069807,0.000109,2]
[340641834,1729585840099,-2161.93590095,0.000109,2]
[340641845,1729585843110,-288.33986559,0.000109,2]
[340641846,1729585843120,-390.61644014,0.000109,2]
[340641847,1729585843129,-528.07289967,0.000109,2]
[340641848,1729585843139,-500.0,0.000109,2]
[340641849,1729585843148,-2502.54872323,0.000109,2]
[340641850,1729585843158,-2515.64057129,0.00010959,2]
[340641853,1729585845833,-929.81268657,0.0001074,2]
[340641855,1729585848470,553.48,8.389e-05,2]
[340641856,1729585850878,250.0,0.00010306,2]
[340641861,1729585878825,344.52,0.00010275,2]
[340641865,1729585898270,300.0,0.00010255,2]
[340641871,1729585935236,250.0,0.00010257,2]
[340641873,1729585944742,190.48,0.00010227,2]
[340641878,1729586008616,-553.48,0.00010653,2]
[340641879,1729586008637,-99.58019424,0.0001074,2]
[340641880,1729586008657,-1066.02661983,0.0001074,2]
[340641881,1729586008678,-300.0,0.00010899,2]
[340641882,1729586008699,-150.0,0.00010899,2]
[340641883,1729586008720,-8148.3257,0.000109,2]
[340641884,1729586008741,-21794.3203,0.000109,2]
[340641885,1729586008761,-7888.26718593,0.000109,2]
[340641887,1729586237262,152.17,0.00010112,2]
[340641888,1729586237551,152.17,0.00010115,2]
[340641889,1729586237782,152.17,0.00010118,2]
[340641890,1729586237985,152.17,0.0001012,2]
[340641891,1729586238436,152.17,0.00010123,2]
[340641892,1729586238647,152.17,0.00010126,2]
[340641893,1729586238845,152.17,0.00010129,2]
[340641894,1729586239051,152.17,0.00010132,2]
[340641895,1729586239296,152.17,0.00010135,2]
[340641896,1729586239523,152.17,0.00010137,2]
[340641897,1729586239725,152.17,0.0001014,2]
[340641898,1729586239918,152.17,0.00010143,2]
[340641899,1729586240160,152.17,0.00010146,2]
[340641900,1729586240389,152.17,0.00010149,2]
[340641901,1729586240618,152.17,0.00010152,2]
[340641902,1729586240816,152.17,0.00010154,2]
[340641903,1729586241034,152.17,0.00010157,2]
[340641904,1729586241274,152.17,0.0001016,2]
[340641905,1729586241480,152.17,0.00010163,2]
[340641906,1729586326481,1000.0,0.00010157,2]
[340641907,1729586355395,530.8,8.338e-05,2]
[340641908,1729586420014,250.0,0.00010398,2]
[340641909,1729586431536,250.0,0.00010398,2]
[340641910,1729586458425,-183.75,0.00010434,2]
[340641912,1729586643728,-530.8,0.00010601,2]
[340641913,1729586643765,-1109.84998623,0.00010682,2]
[340641914,1729586643808,-1043.12442292,0.00010682,2]
[340641915,1729586643854,-2954.3327,0.00010897,2]
[340641916,1729586643891,-1000.0,0.00010899,2]
[340641917,1729586643928,-21965.01185127,0.00010899,2]
[340641918,1729586643965,-10415.76031407,0.000109,2]
[340641919,1729586644001,-1261.3604,0.000109,2]
[340641920,1729586644037,-7500.0,0.000109,2]
[340641921,1729586644072,-16535.1318,0.000109,2]
[340641922,1729586644107,-16920.19722374,0.000109,2]
[340641923,1729586644142,-337.66488343,0.000109,2]
[340641924,1729586644177,-499.99,0.00010903,2]
[340641925,1729586644211,-150.99,0.00010903,2]
[340641926,1729586644248,-1302.717,0.00010905,2]
[340641927,1729586644288,-166.63,0.00010959,2]
[340641928,1729586644327,-170.43,0.00010959,2]
[340641929,1729586644364,-806.93,0.00010959,2]
[340641930,1729586644404,-165.82,0.00010959,2]
[340641931,1729586644597,-250.0,0.00010959,2]
[340641932,1729586644632,-177.66837529,0.0001099,2]
[340641933,1729586644659,-18108.12,0.00010997,2]
[340641934,1729586644687,-500.0,0.00010999,2]
[340641935,1729586644715,-442.86482296,0.00010999,2]
[340641936,1729586644741,-567.0,0.00011,2]
[340641937,1729586644772,-288461.60622009,0.00011,2]
[340641952,1729586916767,150.0,8.803e-05,2]
[340641953,1729586916789,150.0,8.803e-05,2]
[340641954,1729586916812,177.72,8.803e-05,2]
[340641969,1729587032023,-156.21,0.00010548,2]
[340641970,1729587032033,-250.0,0.00010593,2]
[340641971,1729587032043,-250.0,0.00010656,2]
[340641972,1729587032154,-200.0,0.00010716,2]
[340641973,1729587032164,-1066.96493987,0.0001078,2]
[340641974,1729587032174,-1323.03017141,0.0001078,2]
[340641975,1729587032184,-40122.1267,0.000109,2]
[340641976,1729587032194,-664.3682,0.000109,2]
[340641977,1729587032204,-72836.0,0.00010959,2]
[340641978,1729587032213,-157.56,0.00010959,2]
[340641979,1729587032223,-170.43,0.00010959,2]
[340641980,1729587032235,-150.0,0.00010986,2]
[340641981,1729587032245,-84692.92594507,0.00011,2]
[340641982,1729587032257,-5945.57433358,0.00011,2]
[340641983,1729587032270,-1571.99124699,0.00011,2]
[340641984,1729587032282,-655.60712406,0.00011,2]
[340641985,1729587032294,-2946.57874193,0.00011,2]
[340641986,1729587032306,-335.425,0.00011,2]
[340641987,1729587032319,-263.99149982,0.00011,2]
[340641988,1729587032332,-340.28165674,0.00011,2]
[340641989,1729587032345,-8234.1906079,0.00011,2]
[340641990,1729587032356,-3834.18185265,0.00011,2]
[340641991,1729587032367,-375.96660884,0.00011,2]
[340641994,1729587038001,-1008.27151686,0.00011,2]
[340641995,1729587038013,-134395.48360524,0.00011,2]
[340641996,1729587038024,-11833.53899111,0.00011,2]
[340641998,1729587038057,-569.5689955,0.00011,2]
[340641999,1729587038113,-33612.92776101,0.00011,2]
[340642000,1729587038374,-323.24811251,0.00011,2]
[340642001,1729587038389,-2134.90469622,0.00011,2]
[340642004,1729587038405,-313.999999,0.00011,2]
[340642036,1729587040113,-4009.69731639,0.00011,2]
[340642037,1729587040130,-671.66,0.00011,2]
[340642038,1729587042696,-9096.64373114,0.00011,2]
[340642039,1729587042713,-8947.21879473,0.00011,2]
[340642040,1729587042727,-8943.78386462,0.00011,2]
[340642041,1729587042743,-9077.54866152,0.00011,2]
[340642042,1729587042761,-8943.84023489,0.00011,2]
[340642047,1729587043032,-1770758.67625075,0.00011,2]
[340642048,1729587043048,-553.22348277,0.00011,2]
[340642049,1729587043063,-1890.51481551,0.00011,2]
[340642050,1729587043078,-1615.20640112,0.00011,2]
[340642051,1729587043195,-6811.34472,0.00011,2]
[340642052,1729587043251,-10073.4,0.00011,2]
[340642053,1729587043267,-8913.5378235,0.00011,2]
[340642056,1729587045946,-42003.33591062,0.00011,2]
[340642057,1729587046001,-536.58367,0.00011,2]
[340642058,1729587046016,-9979.57507711,0.00011,2]
[340642059,1729587046112,-1675.65,0.00011,2]
[340642060,1729587046127,-6719.92555018,0.00011,2]
[340642062,1729587046747,-0.39452219,0.00011,2]
[340642063,1729587046763,-6722.67384,0.00011,2]
[340642066,1729587321910,89.90705216,0.00010363,2]
[340642067,1729587321937,750.09294784,0.00010363,2]
[340642068,1729587325457,250.0,0.0001,2]
[340642069,1729587361704,-421.310675,0.00010483,2]
[340642070,1729587437413,150.0,8.515e-05,2]
[340642071,1729587437436,354.44,8.515e-05,2]
[340642072,1729587444022,-3320.10730088,0.0001049,2]
[340642073,1729587459091,-567.63,0.00010429,2]
[340642074,1729587471594,-250.0,0.0001049,2]
[340642075,1729587533167,-181.55,0.00010408,2]
[340642076,1729587533188,-2212.47274844,0.00010489,2]
[340642077,1729587535206,-181.55,0.00010489,2]
[340642078,1729587538110,-2394.02274836,0.00010489,2]
[340642079,1729587543069,-2394.02274836,0.00010489,2]
[340642080,1729587556432,-2394.02274836,0.00010489,2]
[340642081,1729587561006,-2394.02274836,0.00010489,2]
[340642082,1729587563187,-2394.02274836,0.00010489,2]
[340642083,1729587568825,-1110.26553388,0.0001049,2]
[340642084,1729587637309,1000.0,0.00014,10]
[340642085,1729587656109,1020.0,0.00014,10]
[340642086,1729587676725,252.8748098,0.0001039,2]
[340642087,1729587677272,250.0,0.00010083,2]
[340642088,1729587705988,1000.0,0.00014,10]
[340642089,1729587743738,1000.0,0.00014,10]
[340642090,1729587778113,1030.0,0.00014,10]
[340642091,1729587810620,1000.0,0.000141,10]
[340642092,1729587843777,1104.48924643,0.0001039,2]
[340642104,1729587890143,328.0,9.97e-05,2]
[340642105,1729587951659,-150.0,0.00010407,2]
[340642106,1729588007337,479.21,8.219e-05,2]
[340642107,1729588012431,8047.58,0.00010416,7]
[340642108,1729588012452,4093.47931391,0.00010416,7]
[340642123,1729588060947,-150.0,0.00010409,2]
[340642124,1729588060972,-479.21,0.00010479,2]
[340642125,1729588060996,-495.79181616,0.0001049,2]
[340642126,1729588061021,-3860.86089776,0.00010599,2]
[340642127,1729588061045,-1006.0,0.000107,2]
[340642128,1729588061071,-6581.6281,0.00010897,2]
[340642129,1729588061096,-686.2404,0.00010897,2]
[340642130,1729588061119,-150.99,0.00010899,2]
[340642131,1729588061142,-555.75,0.00010899,2]
[340642132,1729588061165,-150.0,0.00010899,2]
[340642133,1729588061191,-2926.212,0.000109,2]
[340642134,1729588061214,-37237.8768,0.000109,2]
[340642135,1729588061237,-178.24205391,0.000109,2]
[340642136,1729588061261,-999.99,0.000109,2]
[340642137,1729588061284,-2500.0,0.000109,2]
[340642138,1729588061307,-1202.0218,0.000109,2]
[340642139,1729588061331,-203.57418324,0.000109,2]
[340642140,1729588061357,-1161.43093767,0.000109,2]
[340642141,1729588061383,-150.70957556,0.000109,2]
[340642142,1729588061408,-320.44392796,0.000109,2]
[340642143,1729588061433,-683.3546,0.00010945,2]
[340642144,1729588061456,-215.38,0.00010959,2]
[340642145,1729588061481,-150.75,0.00010959,2]
[340642146,1729588061505,-250.0,0.00010959,2]
[340642147,1729588061529,-170.43,0.00010959,2]
[340642148,1729588061553,-150.99,0.00010959,2]
[340642149,1729588061577,-3271.53,0.00010973,2]
[340642150,1729588061600,-151.56244553,0.00010973,2]
[340642151,1729588061627,-500.0,0.00010973,2]
[340642152,1729588061743,-500.0,0.00010973,2]
[340642153,1729588061768,-1206.0330689,0.00010997,2]
[340642154,1729588061792,-2243.2744395,0.00010997,2]
[340642155,1729588061817,-4659.5951533,0.00010997,2]
[340642156,1729588061840,-3946.5812332,0.00010997,2]
[340642157,1729588061863,-20903.54656731,0.00010997,2]
[340642158,1729588064257,1012.44847583,0.00010379,2]
[340642159,1729588068965,1012.44847582,0.0001038,2]
[340642160,1729588073967,1012.44847582,0.00010381,2]
[340642161,1729588079350,1012.44847582,0.00010382,2]
[340642162,1729588084037,1012.44847582,0.00010383,2]
[340642164,1729588088925,1012.44847582,0.00010384,2]
[340642165,1729588094376,1012.44847582,0.00010385,2]
[340642166,1729588098982,1012.44847582,0.00010386,2]
[340642168,1729588104053,1012.44847582,0.00010387,2]
[340642169,1729588109126,1012.44847582,0.00010388,2]
[340642170,1729588109861,400.0,0.000102,3]
[340642171,1729588111983,800.0,0.000103,3]
[340642172,1729588113962,1012.44847582,0.00010389,2]
[340642173,1729588114165,1200.0,0.000104,3]
[340642174,1729588115017,-500.0,0.00010873,2]
[340642175,1729588115042,-150.0,0.00010898,2]
[340642176,1729588115068,-385.150113,0.000109,2]
[340642177,1729588115093,-1000.0,0.000109,2]
[340642178,1729588115117,-500.0,0.00010973,2]
[340642179,1729588115146,-34681.26382919,0.00010997,2]
[340642180,1729588115170,-8373.779587,0.00010997,2]
[340642181,1729588115194,-1263.2975251,0.00010997,2]
[340642182,1729588115217,-207.34970627,0.00010999,2]
[340642183,1729588115241,-203.4,0.00010999,2]
[340642184,1729588115264,-5285.52,0.00010999,2]
[340642185,1729588115288,-514.0,0.00011,2]
[340642186,1729588115316,-596936.23923944,0.00011,2]
[340642187,1729588116255,1700.0,0.000105,3]
[340642188,1729588118544,2100.0,0.000106,3]
[340642189,1729588119045,1012.44847582,0.0001039,2]
[340642190,1729588120835,400.0,0.000107,3]
[340642191,1729588122762,400.0,0.000108,3]
[340642192,1729588124862,400.0,0.000109,3]
[340642193,1729588134114,-200.0,0.000109,2]
[340642195,1729588169210,250.0,9.918e-05,2]
[340642237,1729588232224,-2300.0,0.000109,2]
[340642239,1729588232234,-849.1679,0.000109,2]
[340642241,1729588232244,-256.766742,0.000109,2]
[340642243,1729588232255,-132.64084488,0.000109,2]
[340642247,1729588232282,-476.09994262,0.000109,2]
[340642259,1729588238523,-658.91642925,0.000109,2]
[340642260,1729588238535,-319.48359934,0.000109,2]
[340642261,1729588238546,-580.5753858,0.000109,2]
[340642262,1729588238557,-5395.89055,0.000109,2]
[340642263,1729588238579,-4574.85734811,0.000109,2]
[340642264,1729588238588,-158.95,0.00010959,2]
[340642265,1729588238597,-500.0,0.00010973,2]
[340642266,1729588238608,-152.23415255,0.0001099,2]
[340642267,1729588238617,-1062.6268034,0.00010997,2]
[340642268,1729588238626,-150.0,0.00010999,2]
[340642269,1729588238636,-300.0,0.00010999,2]
[340642270,1729588238645,-300.0,0.00010999,2]
[340642271,1729588238655,-504.0,0.00011,2]